Cogmind - Beta 12 @@@ ROGUE MODE // 2023.11.06 @ 04:42:47 Player: J1ANG-5HI Result: Destroyed by D-53 Grenadier with Mini Grenade Launcher Performance ------------- Evolutions (4) 2000 Regions Visited (8) 1600 Robots Destroyed (64) 320 Value Destroyed (2097) 2097 Prototype IDs (35) 700 Alien Tech Used (0) 0 Bonus (143) 143 TOTAL SCORE: 6860 Bonus ------- High Alert Combat Kills 67 Aligned with FarCom 300 Friendly Fire -224 Cogmind --------- Core Integrity 0/850 Matter 31/300 Energy 100/100 System Corruption 0% Temperature Cool (0) Movement Core (1500) Ox29 Location -6/Factory Parts ------- > --- POWER (1) -------- (None) > --- PROPULSION (4) --- (None) > --- UTILITY (6) ------ Huge Storage Unit Target Analyzer > --- WEAPON (4) ------- Mini Assault Cannon Mini Assault Cannon > --- INVENTORY (25) --- Cryofiber Web Coolant Injector Matter Compressor (0) Improved Trap Scanner Advanced ECM Suite Improved Shield Generator Hacking Suite Tractor Beam Improved Trap Extractor (0/6) Recalibrator Sensor Drone Bay (20/20) Lightning Gun Gatling Laser Latent Energy Streamer Enhanced Autogun Gauss Rifle Advanced Assault Cannon Mini Assault Cannon Grenade Launcher Heavy Rocket Launcher Datajack Peak State ------------ > --- POWER ------------ Light Angular Momentum Engine > --- PROPULSION ------- Armored Treads Armored Treads Armored Treads Armored Treads > --- UTILITY ---------- Improved Heat Sink Advanced Heat Sink Huge Storage Unit Target Analyzer Weapon Cycler Layered Light Armor Plating > --- WEAPON ----------- Mini Assault Cannon Mini Assault Cannon Mini Assault Cannon Mini Assault Cannon > --- INVENTORY -------- Compact Wheel Cryofiber Web Improved Heat Sink Coolant Injector Trap Scanner Advanced ECM Suite Improved Shield Generator Hacking Suite Tractor Beam Improved Trap Extractor Recalibrator Sensor Drone Bay Lightning Gun Gatling Laser Latent Energy Streamer Enhanced Autogun Gauss Rifle Advanced Assault Cannon Grenade Launcher Heavy Rocket Launcher Datajack Axe [Rating: 65] Favorites ----------- Power Ion Engine Engine Ion Engine Power Core Micro Nuclear Core Propulsion Aluminum Leg Treads Armored Treads Leg Aluminum Leg Wheel Wheel Hover Unit Cooled Airjet Utility Improved Heat Sink Device Improved Heat Sink Storage Huge Storage Unit Processor Target Analyzer Protection Improved Light Armor Plating Weapon Small Laser Energy Gun Small Laser Ballistic Gun Minigun Ballistic Cannon Mini Assault Cannon Launcher Grenade Launcher Slashing Weapon Axe Special Melee Weapon Datajack Build | -11 -10 -10 -10 -9 -8 -7 -7 -6 ------- Run | Jun Mat Min Exi Min Mat Fac Sto Fac Slots Evolved 8 | . . . . . 4 2 . 2 Power . | . . . . . . . . . Propulsion 2 | . . . . . . 2 . . Utility 4 | . . . . . 4 . . . Weapon 2 | . . . . . . . . 2 Parts Attached 88 | . 3 3 3 12 11 14 33 9 Power 6 | . . . . 2 . . 3 1 Engine 3 | . . . . 1 . . 2 . Core 3 | . . . . 1 . . 1 1 Reactor . | . . . . . . . . . Propulsion 19 | . . . . 1 2 6 9 1 Treads 4 | . . . . . . . 4 . Leg 4 | . . . . 1 . . 3 . Wheel 5 | . . . . . 2 . 2 1 Hover 6 | . . . . . . 6 . . Flight . | . . . . . . . . . Utility 35 | . 3 1 2 4 7 4 11 3 Device 22 | . 1 1 1 4 4 4 5 2 Storage 4 | . 2 . 1 . 1 . . . Processor 1 | . . . . . . . 1 . Hackware . | . . . . . . . . . Protection 8 | . . . . . 2 . 5 1 Artifact . | . . . . . . . . . Weapon 28 | . . 2 1 5 2 4 10 4 Energy Gun 4 | . . 1 1 1 . . 1 . Energy Cannon . | . . . . . . . . . Ballistic Gun 3 | . . . . 1 1 . 1 . Ballistic Cannon 9 | . . . . 1 . 1 5 2 Launcher 6 | . . 1 . 1 . 1 2 1 Special Weapon . | . . . . . . . . . Impact Weapon . | . . . . . . . . . Slashing Weapon 4 | . . . . . 1 1 1 1 Piercing Weapon . | . . . . . . . . . Special Melee Weapon 2 | . . . . 1 . 1 . . Unidentified Prototypes 4 | . . . . 1 . 1 2 . Corrupted Parts 6 | . . . . 6 . . . . System Corruption 33 | . . . . 33 . . . . Parts Lost 33 | . . . . . . . 19 14 Power 4 | . . . . . . . 2 2 Propulsion 10 | . . . . . . . 5 5 Utility 15 | . . . . . . . 10 5 Weapon 4 | . . . . . . . 2 2 Highest Loss Streak 8 | . . . . . . . 8 7 To Critical Strikes 1 | . . . . . . . . 1 Average Slot Usage (%) 93 | . 86 100 100 99 99 88 91 87 Engine 6 | . 14 14 14 14 . . 5 5 Core 2 | . . . . . 9 7 1 . Treads 4 | . . . . . . . 9 17 Leg 13 | . 28 28 28 28 9 . 9 . Wheel 3 | . . . . . 8 10 2 1 Hover 2 | . . . . . . 9 4 . Device 17 | . 1 14 14 13 26 28 18 16 Storage 9 | . 14 14 14 14 9 7 7 6 Processor 1 | . . . . . . . 3 6 Protection 7 | . . . . . 17 8 13 4 Energy Gun 10 | . 28 27 28 14 7 . 3 . Ballistic Gun 2 | . . . . 4 1 7 1 . Ballistic Cannon 5 | . . . . . 9 2 6 25 Special Melee Weapon 1 | . . . . 8 . 1 . . Naked Turns . | . . . . . . . . . Heaviest Build 115 | 12 28 30 28 41 114 113 115 112 Greatest Support 80 | 20 20 20 20 20 26 33 80 80 Greatest Overweight (x) 32 | . 1 1 1 2 11 12 12 32 Average Overweight (x) 2 | . . 1 1 1 3 3 3 2 Largest Inventory Capacity 25 | . 15 15 15 15 25 25 25 25 Average Capacity 20 | . 14 15 15 15 19 25 25 25 Most Carried 25 | . 10 12 15 15 24 25 25 23 Average Carried 17 | . 7 11 12 14 16 24 23 21 Final Capacity 25 | 8 15 15 15 15 25 25 25 25 Final Carried 25 | 6 9 12 12 15 24 25 24 21 Class Distribution -------------------- 86% | Mutant 8% | Gunner 4% | Scavenger-Mutant Dominant Class ---------------- Mutant | -10/Materials Mutant | -10/Mines Mutant | -10/Exiles Mutant | -9/Mines Mutant | -8/Materials Mutant | -7/Factory Mutant | -7/Storage Gunner | -6/Factory Resources | -11 -10 -10 -10 -9 -8 -7 -7 -6 ----------- Run | Jun Mat Min Exi Min Mat Fac Sto Fac Matter Collected 1939 | 200 20 . . 76 453 . 970 220 Remotely . | . . . . . . . . . Salvage Created 2054 | . 168 26 . . 340 . 1312 208 Parts 103 | . 12 5 . . 14 . 60 12 Haulers Intercepted 2 | . . . . . 1 . 1 . Recyclers Shooed 2 | . . . . . . . 1 1 Parts Field Recycled . | . . . . . . . . . Retrieved Matter . | . . . . . . . . . Parts Self-Destructed . | . . . . . . . . . Prevented . | . . . . . . . . . Kills | -11 -10 -10 -10 -9 -8 -7 -7 -6 ------- Run | Jun Mat Min Exi Min Mat Fac Sto Fac Combat Hostiles Destroyed 54 | . 8 3 . . 5 . 26 12 Melee 5 | . . . . . . . 4 1 Guns 18 | . 8 . . . 3 . 7 . Cannons 17 | . . . . . 2 . 7 8 AOE 14 | . . 3 . . . . 8 3 Classes Destroyed 15 | . 2 . . . 5 . 6 2 Builder 2 | . . . . . 1 . 1 . Hauler 2 | . . . . . 1 . 1 . Recycler 6 | . . . . . 2 . 4 . Mechanic 2 | . . . . . . . 2 . Operator 2 | . . . . . 1 . 1 . Watcher 2 | . . . . . 1 . . 1 Swarmer 15 | . 6 3 . . 1 . 5 . Grunt 18 | . 2 . . . 4 . 10 2 Brawler 2 | . . . . . . . 2 . Duelist 1 | . . . . . . . 1 . Sentry 5 | . . . . . . . 5 . Specialist 1 | . . . . . . . . 1 Hunter 3 | . . . . . . . 2 1 Programmer 2 | . . . . . . . 1 1 Assembled 7 | . . . . . . . . 7 Thug 1 | . . . . . . . 1 . Best Kill Streak 9 | . 2 3 . . 4 . 8 9 Combat Bots Only 8 | . 2 3 . . 3 . 8 7 Max Kills in Single Turn 4 | . 1 2 . . 1 . 4 2 Gunslinging . | . . . . . . . . . Exploded 4 | . . 2 . . . . 4 2 Melee 1 | . . . . . . . 1 1 Uniques/NPCs Destroyed . | . . . . . . . . . Combat | -11 -10 -10 -10 -9 -8 -7 -7 -6 -------- Run | Jun Mat Min Exi Min Mat Fac Sto Fac Damage Taken 6745 | . 276 23 . 37 414 . 3573 2422 Core 1482 | . 56 . . . 62 . 491 873 Absorbed by Shields . | . . . . . . . . . Core Remaining (%) 73 | 100 . . . 77 88 . 29 . Volleys Fired 159 | . 22 2 . . 44 2 67 22 Largest 4 | . 2 2 . . 2 1 2 4 Hottest 192 | . 80 70 . . 103 48 96 192 Shots Fired 300 | . 44 3 . . 64 4 125 60 Gun 113 | . 44 1 . . 20 1 47 . Cannon 178 | . . . . . 44 2 74 58 Launcher 9 | . . 2 . . . 1 4 2 Special . | . . . . . . . . . Kinetic 192 | . . . . . 57 3 74 58 Thermal 92 | . 44 1 . . . . 47 . Explosive 9 | . . 2 . . . 1 4 2 Electromagnetic 7 | . . . . . 7 . . . Robot Hit Streak 20 | . 20 1 . . 7 . 10 6 Robot Miss Streak 4 | . 3 1 . . 3 1 4 2 Penetration Max . | . . . . . . . . . Secondary Targets 1 | . 1 . . . . . . . Max Gunslinging Chain 1 | . 1 . . . . . . . Shots Hit Robots 188 | . 30 1 . 1 32 1 89 34 Core Hits 113 | . 10 3 . . 14 . 64 22 Critical Kills 1 | . . . . . 1 . . . Critical Parts Destroyed . | . . . . . . . . . Critical Strikes 16 | . . . . . 2 . 10 4 Burn 4 | . . . . . . . 4 . Destroy 1 | . . . . . 1 . . . Blast 9 | . . . . . 1 . 4 4 Sever 2 | . . . . . . . 2 . Melee Attacks 25 | . . . . 1 1 1 18 4 Impact . | . . . . . . . . . Slashing 23 | . . . . . 1 . 18 4 Piercing . | . . . . . . . . . Sneak Attacks 3 | . . . . 1 . 1 1 . Combat Hostiles . | . . . . . . . . . Follow-up Attacks . | . . . . . . . . . Damage Inflicted 6399 | . 342 114 . . 900 . 3746 1297 Guns 1398 | . 342 . . . 309 . 747 . Cannons 2561 | . . . . . 591 . 1079 891 Explosions 1956 | . . 114 . . . . 1515 327 Melee 481 | . . . . . . . 402 79 Ramming 3 | . . . . . . . 3 . Kinetic 2752 | . . . . . 782 . 1079 891 Thermal 1089 | . 342 . . . . . 747 . Explosive 1956 | . . 114 . . . . 1515 327 Electromagnetic 118 | . . . . . 118 . . . Impact . | . . . . . . . . . Slashing 481 | . . . . . . . 402 79 Piercing . | . . . . . . . . . Highest Corruption 33 | . . . . 33 . 7 7 . Average Corruption 7 | . . . . 17 . 6 7 . Corruption Purged . | . . . . . . . . . Corruption Blocked . | . . . . . . . . . Effects 52 | . . . . 1 . 8 43 . Message Errors 17 | . . . . . . 2 15 . Matter Fused 8 | . . . . 1 . 2 5 . Heat Flow Errors 5 | . . . . . . . 5 . Energy Discharges 13 | . . . . . . 2 11 . Data Loss (minor) 2 | . . . . . . . 2 . Data Loss (major) 1 | . . . . . . . 1 . Misfires 4 | . . . . . . 2 2 . Alerts 1 | . . . . . . . 1 . Weapon Failures 1 | . . . . . . . 1 . Overload Shots . | . . . . . . . . . Overflow Damage 151 | . . . . . 6 . 102 43 Projectiles 75 | . . . . . 6 . 51 18 Explosions 74 | . . . . . . . 51 23 Melee 2 | . . . . . . . . 2 Knockbacks 24 | . . . . . 5 . 10 9 Impact . | . . . . . . . . . Kinetic 22 | . . . . . 5 . 9 8 Secondary 2 | . . . . . . . 1 1 Self-Inflicted Damage 213 | . . . . . . . 213 . Shots 4 | . . . . . . . 4 . Rammed 1 | . . . . . . . 1 . Targets Rammed 2 | . . . . . 1 . 1 . Kicked 1 | . . . . . 1 . . . Crushed . | . . . . . . . . . Highest Temperature 480 | . 192 9 . . 20 . 220 480 Average Temperature 90 | . 65 5 . . 5 . 89 155 Received Heat Transfer 1854 | . 48 . . . 270 . 1086 450 Effects 4 | . . . . . . . . 4 Shutdowns 1 | . . . . . . . . 1 Interference 3 | . . . . . . . . 3 Siege Activations . | . . . . . . . . . Robots Corrupted . | . . . . . . . . . Combat Hostiles . | . . . . . . . . . Parts Fried 1 | . . . . . 1 . . . Impact Corruptions . | . . . . . . . . . Robots Melted . | . . . . . . . . . Combat Hostiles . | . . . . . . . . . Parts Melted 7 | . 3 . . . . . 4 . Heat Transferred 2489 | . 750 . . . . . 1739 . Parts Sabotaged . | . . . . . . . . . Parts Stolen . | . . . . . . . . . Parts Stripped . | . . . . . . . . . Power Chain Reactions . | . . . . . . . . . Missiles Intercepted . | . . . . . . . . . Alert | -11 -10 -10 -10 -9 -8 -7 -7 -6 ------- Run | Jun Mat Min Exi Min Mat Fac Sto Fac Peak Influence 589 | . 224 77 . . 149 18 589 175 Initial 148 | . . . . . . 3 . 148 Average 74 | . 79 62 . . 43 6 142 126 Maximum Alert Level 2 | . 1 . . . . . 2 . Low Security (%) 91 | . 95 100 . 100 100 100 70 100 Level 1 4 | . 4 . . . . . 15 . Level 2 3 | . . . . . . . 14 . Level 3 . | . . . . . . . . . Level 4 . | . . . . . . . . . Level 5 . | . . . . . . . . . High Security . | . . . . . . . . . Max Security . | . . . . . . . . . Squads Dispatched 14 | . 1 . . 1 3 1 6 2 Investigation 3 | . . . . 1 1 . 1 . Extermination 3 | . . . . . . 1 1 1 Reinforcement 6 | . 1 . . . 2 . 2 1 Assault 2 | . . . . . . . 2 . Garrison . | . . . . . . . . . Intercept . | . . . . . . . . . Searches Triggered . | . . . . . . . . . Construction Impeded 2 | . . . . . 2 . . . Haulers Reinforced . | . . . . . . . . . Active Scanning Responses . | . . . . . . . . . Cargo Convoy Interrupts . | . . . . . . . . . Stealth | -11 -10 -10 -10 -9 -8 -7 -7 -6 --------- Run | Jun Mat Min Exi Min Mat Fac Sto Fac Distress Signals 7 | . 3 . . . 1 . 3 . Communications Jammed . | . . . . . . . . . Distress Signals . | . . . . . . . . . Times Spotted 108 | . 16 3 . . 19 1 38 31 Peak Tracking Total 11 | . 5 3 . . 5 2 11 9 Tactical Retreats 4 | . 2 . . . . . 1 1 Traps | -11 -10 -10 -10 -9 -8 -7 -7 -6 ------- Run | Jun Mat Min Exi Min Mat Fac Sto Fac Traps Triggered 2 | . . . . 1 . . 1 . Indirectly . | . . . . . . . . . Trap Hack Attempts 77 | . . . . 2 . 75 . . Triggered . | . . . . . . . . . Disarmed . | . . . . . . . . . Reprogrammed 5 | . . . . 1 . 4 . . Reused 1 | . . . . . . 1 . . Traps Extracted . | . . . . . . . . . Installed . | . . . . . . . . . Triggered 1 | . . . . . . 1 . . Machines | -11 -10 -10 -10 -9 -8 -7 -7 -6 ---------- Run | Jun Mat Min Exi Min Mat Fac Sto Fac Machines Disabled 6 | . . . . . 1 . 5 . Max in Single Turn 2 | . . . . . 1 . 2 . Machines Repaired . | . . . . . . . . . Machines Sabotaged . | . . . . . . . . . Overloaded Fab Kills . | . . . . . . . . . Hacking | -11 -10 -10 -10 -9 -8 -7 -7 -6 --------- Run | Jun Mat Min Exi Min Mat Fac Sto Fac Machines Accessed 29 | . 5 . 2 3 8 3 5 3 Terminals 17 | . 5 . . . 6 1 4 1 Fabricators 2 | . . . . . . . . 2 Repair Stations 1 | . . . . . . . 1 . Recycling Units 2 | . . . . . 2 . . . Scanalyzers 1 | . . . . . . 1 . . Garrison Access 1 | . . . . . . 1 . . Total Hacks 69 | . 9 . 5 3 31 5 12 4 Successful 30 | . 5 . 5 3 13 . 2 2 Failed 38 | . 4 . . . 17 5 10 2 Catastrophic 5 | . 1 . . . 1 2 1 . Database Lockouts 1 | . . . . . 1 . . . Manual 31 | . 6 . 1 . 22 1 1 . Terminals 46 | . 9 . . . 25 1 9 2 Fabricators 2 | . . . . . . . . 2 Repair Stations 3 | . . . . . . . 3 . Recycling Units 6 | . . . . . 6 . . . Scanalyzers 1 | . . . . . . 1 . . Garrison Access 3 | . . . . . . 3 . . Terminal Hacks 23 | . 3 . 5 3 10 . 2 . Record 4 | . . . 4 . . . . . Robot Analysis 4 | . 2 . . . 2 . . . Prototype ID Bank 4 | . . . . . 3 . 1 . Open Door 3 | . . . . 3 . . . . Level Access Points 1 | . . . . . 1 . . . Branch Access Points 1 | . . . . . 1 . . . Unreport Threat 2 | . 1 . . . . . 1 . Recall Investigation 1 | . . . . . 1 . . . Hauler Manifests 1 | . . . . . 1 . . . Zone Layout 1 | . . . . . 1 . . . EX-Prototype ID Bank 1 | . . . 1 . . . . . Fabricator Hacks 2 | . . . . . . . . 2 Network Status 1 | . . . . . . . . 1 Build 1 | . . . . . . . . 1 Repair Station Hacks . | . . . . . . . . . Recycling Unit Hacks 1 | . . . . . 1 . . . Retrieve Matter 1 | . . . . . 1 . . . Scanalyzer . | . . . . . . . . . Garrison Access Hacks . | . . . . . . . . . Unauthorized Hacks 4 | . 2 . . . 2 . . . Terminals 4 | . 2 . . . 2 . . . Botnet 4 | . 2 . . . 2 . . . Fabricators . | . . . . . . . . . Repair Stations . | . . . . . . . . . Recycling Units . | . . . . . . . . . Scanalyzers . | . . . . . . . . . Garrison Access . | . . . . . . . . . Data Cores Recovered . | . . . . . . . . . Used . | . . . . . . . . . Hacking Detections 22 | . 4 . . . 8 3 5 2 Full Trace Events 2 | . . . . . 1 . 1 . Feedback Events . | . . . . . . . . . Feedback Blocked . | . . . . . . . . . Robot Schematics Acquired . | . . . . . . . . . Robots Built . | . . . . . . . . . Authchips . | . . . . . . . . . Time . | . . . . . . . . . Total Robot Build Rating . | . . . . . . . . . Part Schematics Acquired . | . . . . . . . . . Parts Built 2 | . . . . . . . . 2 Authchips . | . . . . . . . . . Time 53 | . . . . . . . . 53 Total Part Build Rating 12 | . . . . . . . . 12 Parts Repaired . | . . . . . . . . . Time . | . . . . . . . . . Parts Recycled . | . . . . . . . . . Recycled Matter . | . . . . . . . . . Retrieved Matter . | . . . . . . . . . Retrieved Components . | . . . . . . . . . Parts Scanalyzed . | . . . . . . . . . Part Schematics Acquired . | . . . . . . . . . Parts Damaged . | . . . . . . . . . Bothacking | -11 -10 -10 -10 -9 -8 -7 -7 -6 ------------ Run | Jun Mat Min Exi Min Mat Fac Sto Fac Used RIF Installer . | . . . . . . . . . Robots Hacked 1 | . . . . 1 . . . . Non-combat 1 | . . . . 1 . . . . Combat . | . . . . . . . . . Robot Hacks Applied 1 | . . . . 1 . . . . parse_system 1 | . . . . 1 . . . . Relay Couplers Released . | . . . . . . . . . Fabnet Peak Effective % . | . . . . . . . . . Robots Rewired . | . . . . . . . . . Allies Hacked . | . . . . . . . . . Hacks Repelled . | . . . . . . . . . Allies | -11 -10 -10 -10 -9 -8 -7 -7 -6 -------- Run | Jun Mat Min Exi Min Mat Fac Sto Fac Total Allies 2 | . . . . . . . 2 . Largest Group 2 | . . . . . . . 2 . Highest-Rated Group 62 | . . . . . . . 62 . Highest-Rated Ally 31 | . . . . . . . 31 . Total Orders . | . . . . . . . . . Ally Attacks 13 | . . . . . . . 13 . Total Damage 192 | . . . . . . . 192 . Kills 1 | . . . . . . . 1 . Allies Corrupted . | . . . . . . . . . Allies Melted . | . . . . . . . . . Intel | -11 -10 -10 -10 -9 -8 -7 -7 -6 ------- Run | Jun Mat Min Exi Min Mat Fac Sto Fac Robot Analysis Total 4 | . 2 . . . 2 . . . Derelict Logs Recovered 3 | . . 2 . 1 . . . . Drone Launches . | . . . . . . . . . Drone Recoveries . | . . . . . . . . . Exploration | -11 -10 -10 -10 -9 -8 -7 -7 -6 ------------- Run | Jun Mat Min Exi Min Mat Fac Sto Fac Turns Passed 5951 | . 614 344 574 666 825 849 1428 651 Spaces Moved 2478 | 1 281 175 296 321 350 379 448 227 Core 2 | . . . . . . . . 2 Treads 306 | . . . . . . . 135 171 Legs 1329 | 1 281 175 296 321 149 . 106 . Wheels 643 | . . . . . 201 266 122 54 Hover 198 | . . . . . . 113 85 . Flight . | . . . . . . . . . Fastest Speed 120 | 120 120 190 190 190 150 135 150 190 Average Speed 204 | 120 184 190 190 190 199 171 250 247 Slowest Speed 1650 | 120 190 190 190 260 260 780 770 1650 Overloaded Moves . | . . . . . . . . . Propulsion Burnouts . | . . . . . . . . . Robots Hopped . | . . . . . . . . . Cave-ins Triggered . | . . . . . . . . . Exploration Rate (%) 34 | 2 46 42 60 64 19 9 58 7 Regions Visited 8 Branch Regions 4 Pre-discovered Areas 1 | . . . 1 . . . . . Known Exits Taken 2 | . . 1 . . 1 . . . Unknown Exits Taken 6 | 1 1 . 1 1 . 1 1 . Scrap Searched 1 | . . . . 1 . . . . Spaces Dug 21 | . . . . . 9 1 11 . Terrain Destroyed 131 | . . 8 . . 19 8 80 16 Melee 4 | . . . . . 1 . 3 . Projectile 45 | . . . . . 18 1 17 9 AOE 82 | . . 8 . . . 7 60 7 Terrain Rammed . | . . . . . . . . . Walls Destroyed . | . . . . . . . . . Machines Disabled . | . . . . . . . . . Actions | -11 -10 -10 -10 -9 -8 -7 -7 -6 --------- Run | Jun Mat Min Exi Min Mat Fac Sto Fac Total 3092 | . 333 182 310 377 429 575 608 278 Wait 153 | . 19 . . 17 2 92 12 11 Move 2470 | . 280 174 295 320 349 378 447 227 Hop . | . . . . . . . . . Pick Up 76 | . 7 3 6 14 16 5 21 4 Fast Attach 12 | . 1 . . . . 6 5 . Attach 38 | . 1 . 1 2 6 3 19 6 Detach 1 | . . . . . 1 . . . Swap 38 | . 1 3 2 10 5 5 9 3 Drop 41 | . 2 . 6 11 4 8 9 1 Fire 159 | . 22 2 . . 44 2 67 22 Melee 25 | . . . . 1 1 1 18 4 Ram 1 | . . . . . . . 1 . Kick 1 | . . . . . 1 . . . Crush . | . . . . . . . . . Escape Stasis . | . . . . . . . . . Rewire . | . . . . . . . . . Trap 77 | . . . . 2 . 75 . . Miscellaneous . | . . . . . . . . . Route ------- -11/Junkyard -10/Materials (discovered 2 exits: [*Mat] / [*Min]) -10/Mines (discovered 2 exits: [*Mat] / *Exi) -10/Exiles -9/Mines -8/Materials (discovered 3 exits: *Fac x3) -7/Factory -7/Storage -6/Factory History --------- Turn | Location | Event 1 | -11/Junkyard | Discovered new exit (range 0) 1 | -11/Junkyard | Entered Materials 267 | -10/Materials | Discovered new exit (range 11) 317 | -10/Materials | Build established: Mutant 590 | -10/Materials | Discovered new exit (range 12) 615 | -10/Materials | Entered Mines 877 | -10/Mines | Discovered new exit (range 11) 894 | -10/Mines | Identified exit to Exiles 898 | -10/Mines | Learned 2 Materials zone layouts 947 | -10/Mines | Deemed a non-threat by the Exiles lab entrance 959 | -10/Mines | Entered Exiles 1032 | -10/Exiles | Met 8R-AWN 1068 | -10/Exiles | Met EX-HEX 1123 | -10/Exiles | Met EX-BIN 1150 | -10/Exiles | Aligned with FarCom system 1152 | -10/Exiles | Given EX-Vault access code 1195 | -10/Exiles | Opened EX-Vault 1216 | -10/Exiles | Found Latent Energy Streamer 1291 | -10/Exiles | Warned to stay clear of 0b10 Research branches 1355 | -10/Exiles | Met EX-DEC 1363 | -10/Exiles | Learned location of Zion (-7) 1422 | -10/Exiles | Discovered new exit (range 10) 1533 | -10/Exiles | Left Exiles lab with Latent Energy Streamer 1533 | -10/Exiles | Entered Mines 1546 | -9/Mines | Found the Drone Emporium 1558 | -9/Mines | Found Prototype Device 1571 | -9/Mines | Identified Sensor Drone Bay 1779 | -9/Mines | Met a Derelict who couldn't figure out how to use a Trap Extractor 1917 | -9/Mines | Learned location of 1 exit from Lower Caves 1937 | -9/Mines | Met a Derelict shopkeep closing up shop 2165 | -9/Mines | Discovered new exit (range 13) 2194 | -9/Mines | System corruption reached 10% 2199 | -9/Mines | System corruption reached 30% 2199 | -9/Mines | Entered Materials 2199 | -8/Materials | Evolved 4 slots: Utility x4 2200 | -8/Materials | Identified exit to Factory 3013 | -8/Materials | Central database locked down 3024 | -8/Materials | Entered Factory 3024 | -7/Factory | Evolved 2 slots: Propulsion x2 3856 | -7/Factory | Discovered new exit (range 8) 3873 | -7/Factory | Entered Storage 4160 | -7/Storage | Lost 8 parts (1p3n3u1w) 4539 | -7/Storage | Core integrity fell below 50% 4551 | -7/Storage | Lost 4 parts (1n3u) 4815 | -7/Storage | Met a pair of Derelict thieves 5083 | -7/Storage | Lost 3 parts (1p1u1w) 5086 | -7/Storage | Destroyed 8 combat bots 5252 | -7/Storage | Discovered new exit (range 9) 5301 | -7/Storage | Entered Factory 5301 | -6/Factory | Evolved 2 slots: Weapon x2 5540 | -6/Factory | Fabricated Antigrav System (x2) 5592 | -6/Factory | Build established: Gunner 5793 | -6/Factory | Lost 7 parts (4n3u) 5931 | -6/Factory | Core integrity fell below 50% 5932 | -6/Factory | Destroyed 7 combat bots 5943 | -6/Factory | Core integrity fell below 20% 5952 | -6/Factory | Destroyed by D-53 Grenadier with Mini Grenade Launcher Last Messages --------------- 05942_ Mic. Nuclear Core destroyed. 05943_ The unstable cave ceiling collapses. 05943_ U-05 Engineer lays Concrete. 05945_ K-01 Serf collects debris. 05945_ U-05 Engineer lays Concrete. 05947_ The unstable cave ceiling collapses. 05947_ K-01 Serf crushed by falling debris. 05947_ K-01 Serf destroyed. 05947_ U-05 Engineer lays Concrete. 05948_ K-01 Serf collects debris. 05948_ U-05 Engineer lays Concrete. 05948_ K-01 Serf collects debris. 05949_ U-05 Engineer lays Concrete. 05950_ The unstable cave ceiling collapses. 05950_ U-05 Engineer lays Concrete. 05951_ K-01 Serf collects debris. 05951_ U-05 Engineer lays Concrete. 05952_ R-10 Processor collects Wheel. 05952_ K-01 Serf collects debris. 05952_ U-05 Engineer lays Concrete. Map ----- +----------------------------------------------------+ | ???? # # %"""########????????????????????? | | ??? + # T"#???????????????????????????? | | ??? ##### # """#???????????????????????????? | | ?#+###??????# # "" #???????????????????????????? | | ?# #????????# # #???????????????????????????? | | ?# #????????# ###+####???????????????????????????? | | ## #?????#### #?# #??????????????????????????????? | | ####### #?# #??????????????????????????????? | | ####?# #??????????????????????????????? | | ####### #????# #??????????????????????????????? | | + #????# #????????????#?????????????????? | | """"" #### #?####+#########??? #?????????????????? | | ""=F" #??# #?# #??? #?????????????????? | | ""="" #??# #?# "" "" #### ######## ##???????? | | ####+### "" "" # k ??????? | | # # """ """ # ??????? | | # # """ """ !%= R ??????? | | """ # # """ """ % = ??????? | | """ # # [ ??????? | | """ # # d ??????? | | ! # # d R ??????? | | ###+### # ! u #####???????? | | ??????# # %!!k ???????? | | ??????# # = """ ???????? | | ??????+ #""""" # R"G"??????????? | | ??????# """""" # @ # " "??????????? | | ??????# " ????????? | | ??????# ; = ????????? | | ??????#######; % ?????????? | | ??????????? ; " k ?????????? | | ???????????? # "" # # !!?????????? | | ?????????????# # # !!??????????? | | ?????????????# " """" #w #??!!??????????? | | ?????????????# """" """" # #??????????????? | | ?????????????# """" ???" ? #??????????????? | | ??????????????????""????" ?? #??????????????? | | ???????????o????????????? ?? #??????????????? | | ????????????????????????? ?? #??????????????? | | ?????????????????????????#??? ????????????????? | | ????????????????????????????? ???????????????????? | | ?????????????????????????????????????????????????? | | ?????????????????????????????????????????????????? | | ?????????????????????????????????????????????????? | | ?????????????????????????????????????????????????? | | ?????????????????????????????????????????????????? | | ?????????????????????????????????????????????????? | | ?????????????????????????????????????????????????? | | ?????????????????????????????????????????????????? | | ?????????????????????????????????????????????????? | | ?????????????????????????????????????????????????? | +----------------------------------------------------+ Best States ------------- Heat Dissipation 75 Energy Generation 18 Energy Capacity 290 Matter Stores 300 Matter Capacity 300 Sight Range 16 Terrain Scan Density 10 Armor Coverage 525 Resistance: TH 15 Weapon Cycling 15 Evasion (%) 55 Target Analysis 5 Recoil Reduction 4 Trap Extractor Capacity 6 Item Schematics ----------------- None Robot Schematics ------------------ None Fabricated ------------ Antigrav System | x2 | -6/Factory | Preloaded Alien Tech Used ----------------- None Achievements -------------- None Challenges ------------ None Game ------ Seed CompactParticleAutogun Manual? 0 Play Time 01:05:57 Cumulative 167.0 hours Start 2023.11.06 @ 03:37:13 End 2023.11.06 @ 04:42:47 Sessions 1 Manual Loads 0 Difficulty Rogue Special Mode None Game No. 120 Rogue 110 Adventurer 0 Explorer 10 Win Type - Total 3 Types 3/0/0/0/0/0/0/0/0 Lore% 59 Gallery% 68 Achievement% 51 Wizard Run 0 Options --------- ASCII 0 Keyboard 0 Movement Arrows Keybinds 1 Fullscreen 1 Font 18/TerminusBold Map View 76x50 Tactical HUD 1 Map Filters NONE Filters NONE Steam 1 RUN: 17548ae4-cd66-4f38-a874-c641d923966f